Cogmind - Beta 15 @@@ ROGUE MODE // 2025.07.11 @ 22:18:26 Player: BlobtheGreat Result: Destroyed by D-53 Grenadier with Mini Grenade Launcher Performance ------------- Evolutions (0) 0 Regions Visited (2) 400 Robots Destroyed (26) 130 Value Destroyed (622) 622 Prototype IDs (1) 20 Alien Tech Used (0) 0 Bonus (-31) -31 TOTAL SCORE: 1141 Bonus ------- Friendly Fire -31 Cogmind --------- Core Integrity 0/250 Matter 300/300 Energy 83/100 System Corruption 0% Temperature Cool (0) Movement Core (350) Ox6 Location -10/Mines Parts ------- > --- POWER (1) -------- (None) > --- PROPULSION (2) --- (None) > --- UTILITY (2) ------ Large Storage Unit > --- WEAPON (2) ------- (None) > --- INVENTORY (15) --- Ion Engine Light Treads Light Treads Aluminum Leg Improved Heat Sink Seismic Detector Improved Targeting Computer Medium Armor Plating Medium Armor Plating Medium Armor Plating Hacking Suite Mining Laser Peak State ------------ > --- POWER ------------ Ion Engine > --- PROPULSION ------- Aluminum Leg Aluminum Leg > --- UTILITY ---------- Large Storage Unit Seismic Detector > --- WEAPON ----------- Improved EM Shotgun Improved EM Shotgun > --- INVENTORY -------- Ion Engine Light Treads Light Treads Aluminum Leg Improved Heat Sink Seismic Detector Improved Targeting Computer Medium Armor Plating Medium Armor Plating Medium Armor Plating Hacking Suite Grenade Launcher Mining Laser [Rating: 13] Favorites ----------- Power Ion Engine Engine Ion Engine Propulsion Aluminum Leg Leg Aluminum Leg Utility Seismic Detector Device Seismic Detector Storage Large Storage Unit Weapon Light Assault Rifle Energy Gun Improved EM Shotgun Ballistic Gun Light Assault Rifle Launcher Grenade Launcher Build | -11 -10 -10 ------- Run | Yrd Mat Min Slots Evolved . | . . . Power . | . . . Propulsion . | . . . Utility . | . . . Weapon . | . . . Parts Attached 13 | 7 5 1 Power 1 | 1 . . Engine 1 | 1 . . Core . | . . . Reactor . | . . . Propulsion 4 | 2 2 . Treads . | . . . Leg 4 | 2 2 . Wheel . | . . . Hover . | . . . Flight . | . . . Utility 3 | 2 1 . Device 1 | 1 . . Storage 2 | 1 1 . Processor . | . . . Hackware . | . . . Protection . | . . . Artifact . | . . . Weapon 5 | 2 2 1 Energy Gun 2 | . 2 . Energy Cannon . | . . . Ballistic Gun 2 | 2 . . Ballistic Cannon . | . . . Launcher 1 | . . 1 Special Weapon . | . . . Impact Weapon . | . . . Slashing Weapon . | . . . Piercing Weapon . | . . . Special Melee Weapon . | . . . Unidentified Prototypes 1 | . 1 . Parts Lost 10 | . 2 8 Power 1 | . . 1 Propulsion 3 | . 1 2 Utility 1 | . . 1 Weapon 5 | . 1 4 Highest Loss Streak 4 | . 1 4 To Critical Strikes . | . . . Average Backups 10 | 4 9 13 Power . | . 1 1 Propulsion 2 | 3 1 3 Utility 5 | . 4 7 Weapon 2 | . 1 2 Tool/Special . | . . . Unused Backups 19 | . 8 11 Power 2 | . 1 1 Propulsion 5 | . 3 2 Utility 8 | . 1 7 Weapon 4 | . 3 1 Tool/Special . | . . . Average Slot Usage (%) 96 | . 99 91 Engine 13 | . 14 12 Leg 27 | . 27 28 Device 14 | . 14 14 Storage 14 | . 14 14 Energy Gun 10 | . 11 8 Ballistic Gun 12 | . 15 6 Launcher 1 | . . 6 Peak Build Rating 13 | 7 12 13 Average Rating 9 | 5 9 9 On Entrance 6 | . 7 11 Naked Turns . | . . . Heaviest Build 32 | 14 30 32 Greatest Support 20 | 20 20 20 Greatest Overweight (x) 6 | . 2 6 Average Overweight (x) . | . . 1 Largest Inventory Capacity 15 | 8 15 15 Average Capacity 13 | 7 13 15 Most Carried 14 | 7 13 14 Average Carried 10 | 4 9 13 Final Capacity 15 | 8 15 15 Final Carried 13 | 7 13 12 Class Distribution -------------------- 100% | Mutant Dominant Class ---------------- Mutant | -10/Materials Mutant | -10/Mines Resources | -11 -10 -10 ----------- Run | Yrd Mat Min Matter Collected 604 | 302 182 120 Remotely . | . . . Salvage Created 956 | 124 783 49 Parts 66 | 12 47 7 Haulers Intercepted 2 | . 2 . Recyclers Shooed . | . . . Parts Field Recycled . | . . . Retrieved Matter . | . . . Parts Self-Destructed . | . . . Prevented . | . . . Kills | -11 -10 -10 ------- Run | Yrd Mat Min Combat Hostiles Destroyed 22 | . 13 9 Guns 14 | . 13 1 AOE 8 | . . 8 Classes Destroyed 10 | 2 5 3 Worker 1 | . . 1 Builder 1 | . 1 . Tunneler 2 | 2 . . Hauler 2 | . 2 . Recycler 1 | 1 . . Operator 2 | . 2 . Watcher 1 | . 1 . Swarmer 3 | . . 3 Grunt 13 | . 13 . Assembled 6 | . . 6 Best Kill Streak 7 | 3 2 7 Combat Bots Only 6 | . 2 6 Max Kills in Single Turn 3 | 1 1 3 Gunslinging . | . . . Exploded 2 | . . 2 Melee . | . . . Uniques/NPCs Destroyed . | . . . Combat | -11 -10 -10 -------- Run | Yrd Mat Min Hostile Shots Fired 98 | . 62 36 Missed 35 | . 24 11 Hits 63 | . 38 25 Melee 2 | . . 2 Projectile 61 | . 38 23 AOE 6 | . . 6 Critical Strikes 1 | . 1 . Damage Taken 1104 | . 578 526 Core 267 | . 143 124 Absorbed by Shields . | . . . Core Remaining (%) 100 | 100 . . Volleys Fired 79 | 8 58 13 Largest 2 | 2 2 2 Hottest 90 | 40 65 90 Shots Fired 141 | 16 111 14 Gun 133 | 16 111 6 Cannon . | . . . Launcher 8 | . . 8 Special . | . . . Kinetic 94 | 16 78 . Thermal . | . . . Explosive 8 | . . 8 Electromagnetic 39 | . 33 6 Robot Hit Streak 9 | 2 9 7 Robot Miss Streak 6 | 2 4 6 Penetration Max . | . . . Secondary Targets 1 | . 1 . Max Gunslinging Chain 1 | . 1 . Shots Hit Robots 86 | 8 74 4 Core Hits 72 | 5 41 26 Critical Kills . | . . . Critical Parts Destroyed . | . . . Critical Strikes . | . . . Melee Attacks . | . . . Impact . | . . . Slashing . | . . . Piercing . | . . . Sneak Attacks . | . . . Combat Hostiles . | . . . Follow-up Attacks . | . . . Damage Inflicted 1896 | 89 1106 701 Guns 1125 | 83 977 65 Cannons . | . . . Explosions 759 | . 123 636 Melee . | . . . Ramming 12 | 6 6 . Kinetic 486 | 83 403 . Thermal 38 | . 38 . Explosive 721 | . 85 636 Electromagnetic 639 | . 574 65 Impact . | . . . Slashing . | . . . Piercing . | . . . Highest Corruption . | . . . Average Corruption . | . . . Corruption Purged . | . . . Corruption Blocked . | . . . Overload Shots . | . . . Overflow Damage 19 | . . 19 Projectiles . | . . . Explosions 19 | . . 19 Melee . | . . . Knockbacks . | . . . Impact . | . . . Kinetic . | . . . Secondary . | . . . Self-Inflicted Damage 104 | . 92 12 Shots 4 | . 2 2 Rammed . | . . . Targets Rammed 7 | 4 3 . Kicked 7 | 4 3 . Crushed . | . . . Highest Temperature 99 | . 99 15 Average Temperature 25 | . 26 10 Received Heat Transfer 305 | . 285 20 Siege Activations . | . . . Martial Activations . | . . . Shielding Activations . | . . . Robots Disrupted . | . . . Combat Hostiles . | . . . Robots Corrupted . | . . . Combat Hostiles . | . . . Parts Fried 1 | . 1 . Impact Corruptions . | . . . Robots Melted . | . . . Combat Hostiles . | . . . Parts Melted . | . . . Heat Transferred 50 | . 50 . Parts Sabotaged . | . . . Parts Stolen . | . . . Parts Stripped . | . . . Power Chain Reactions 1 | . 1 . Alert | -11 -10 -10 ------- Run | Yrd Mat Min Maximum Alert Level . | . . . Low Security (%) 100 | 100 100 100 Level 1 . | . . . Level 2 . | . . . Level 3 . | . . . Level 4 . | . . . Level 5 . | . . . High Security . | . . . Max Security . | . . . Peak Influence 93 | 10 93 75 Initial 15 | . . 15 Average 23 | 1 31 10 Influence Increases 613 | 15 461 137 Destroy 0b10 Robot/C 320 | . 260 60 Destroy 0b10 Robot/NC 50 | 15 30 5 Destroy Leader 96 | . 86 10 Successful Hack 16 | . 16 . Disable Machine 30 | . 30 . Destroy Structure 56 | . 24 32 Lose Combat Pursuer 45 | . 15 30 Influence Decreases 613 | 15 422 176 Entered New Map 24 | . . 24 Time Decay 527 | 15 412 100 Lost Part 31 | . 10 21 Lost Ally 31 | . . 31 Squads Dispatched 4 | . 4 . Investigation 2 | . 2 . Extermination . | . . . Reinforcement 2 | . 2 . Assault . | . . . Garrison . | . . . Intercept . | . . . Searches Triggered . | . . . Construction Impeded . | . . . Haulers Reinforced . | . . . Active Scanning Responses . | . . . Cargo Convoy Interrupts . | . . . Stealth | -11 -10 -10 --------- Run | Yrd Mat Min Distress Signals 1 | . 1 . Communications Jammed . | . . . Distress Signals . | . . . Times Spotted 43 | . 24 19 Peak Tracking Total 12 | . 3 12 Tactical Retreats 2 | . 1 1 Traps | -11 -10 -10 ------- Run | Yrd Mat Min Traps Triggered 1 | . 1 . Indirectly . | . . . Trap Hack Attempts . | . . . Triggered . | . . . Disarmed . | . . . Reprogrammed . | . . . Reused . | . . . Traps Extracted . | . . . Installed . | . . . Triggered . | . . . Machines | -11 -10 -10 ---------- Run | Yrd Mat Min Machines Disabled 2 | . 2 . Max in Single Turn 2 | . 2 . Machines Repaired . | . . . Machines Dismantled . | . . . Machines Sabotaged . | . . . Overloaded Fab Kills . | . . . Hacking | -11 -10 -10 --------- Run | Yrd Mat Min Machines Accessed 7 | . 7 . Terminals 5 | . 5 . Fabricators . | . . . Repair Stations . | . . . Recycling Units 2 | . 2 . Scanalyzers . | . . . Garrison Access . | . . . Total Hacks 18 | . 18 . Successful 8 | . 8 . Failed 10 | . 10 . Catastrophic 1 | . 1 . Database Lockouts . | . . . Manual 11 | . 11 . Terminals 11 | . 11 . Fabricators . | . . . Repair Stations . | . . . Recycling Units 7 | . 7 . Scanalyzers . | . . . Garrison Access . | . . . Terminal Hacks 2 | . 2 . Robot Analysis 2 | . 2 . Fabricator Hacks . | . . . Repair Station Hacks . | . . . Recycling Unit Hacks 3 | . 3 . Retrieve Components 3 | . 3 . Scanalyzer . | . . . Garrison Access Hacks . | . . . Unauthorized Hacks 3 | . 3 . Terminals 3 | . 3 . Skim 3 | . 3 . Fabricators . | . . . Repair Stations . | . . . Recycling Units . | . . . Scanalyzers . | . . . Garrison Access . | . . . Data Cores Recovered . | . . . Used . | . . . Hacking Detections 7 | . 7 . Full Trace Events 2 | . 2 . Feedback Events . | . . . Feedback Blocked . | . . . Robot Schematics Acquired . | . . . Robots Built . | . . . Authchips . | . . . Time . | . . . Total Robot Build Rating . | . . . Part Schematics Acquired . | . . . Parts Built . | . . . Authchips . | . . . Time . | . . . Total Part Build Rating . | . . . Parts Repaired . | . . . Time . | . . . Parts Recycled . | . . . Recycled Matter . | . . . Retrieved Matter . | . . . Retrieved Components 18 | . 18 . Parts Scanalyzed . | . . . Part Schematics Acquired . | . . . Parts Damaged . | . . . Bothacking | -11 -10 -10 ------------ Run | Yrd Mat Min Used RIF Installer . | . . . Robots Hacked . | . . . Non-combat . | . . . Combat . | . . . Robot Hacks Applied . | . . . Relay Couplers Released . | . . . Fabnet Peak Effective % . | . . . Robots Rewired . | . . . Allies Hacked . | . . . Hacks Repelled . | . . . Allies | -11 -10 -10 -------- Run | Yrd Mat Min Total Allies 3 | . . 3 Largest Group 2 | . . 2 Highest-Rated Group 50 | . . 50 Highest-Rated Ally 31 | . . 31 Total Orders . | . . . Ally Attacks 4 | . . 4 Total Damage 44 | . . 44 Kills 2 | . . 2 Allies Corrupted . | . . . Allies Melted . | . . . Intel | -11 -10 -10 ------- Run | Yrd Mat Min Active Infowar (turns) 2281 | 40 1572 669 Seismic 2281 | 40 1572 669 Robot Analysis Total 2 | . 2 . Derelict Logs Recovered 1 | . . 1 Drone Launches . | . . . Drone Recoveries . | . . . Exploration | -11 -10 -10 ------------- Run | Yrd Mat Min Turns Passed 2358 | 111 1572 675 Spaces Moved 1170 | 57 776 337 Core 3 | 2 . 1 Treads . | . . . Legs 1167 | 55 776 336 Wheels . | . . . Hover . | . . . Flight . | . . . Fastest Speed 50 | 50 120 120 Average Speed 170 | 117 166 190 Slowest Speed 350 | 120 260 350 Overloaded Moves . | . . . Propulsion Burnouts . | . . . Robots Hopped . | . . . Potential Cave-ins . | . . . Cave-ins Triggered . | . . . Exploration Rate (%) 53 | 4 93 63 Regions Visited 2 Branch Regions 1 Pre-discovered Areas . | . . . Known Exits Taken . | . . . Unknown Exits Taken 2 | 1 1 . Scrap Searched . | . . . Spaces Dug 4 | . . 4 Terrain Destroyed 71 | . 27 44 Melee . | . . . Projectile . | . . . AOE 71 | . 27 44 Terrain Rammed . | . . . Walls Destroyed . | . . . Machines Disabled . | . . . Actions | -11 -10 -10 --------- Run | Yrd Mat Min Total 1401 | 82 961 358 Wait 93 | . 91 2 Move 1169 | 57 775 337 Hop . | . . . Pick Up 21 | 7 13 1 Fast Attach 10 | 7 3 . Attach 4 | . 2 2 Detach 2 | . 2 . Swap 7 | . 4 3 Drop 10 | . 10 . Fire 79 | 8 58 13 Melee . | . . . Ram . | . . . Kick 6 | 3 3 . Crush . | . . . Escape Stasis . | . . . Rewire . | . . . Trap . | . . . Miscellaneous . | . . . Route ------- -11/Scrapyard -10/Materials (discovered 4 exits: [*Mat x3] / [*Min]) -10/Mines (discovered 1 exit: [*Sub]) History --------- Turn | Location | Event 13 | -11/Scrapyard | Discovered new exit (range 16) 112 | -11/Scrapyard | Entered Materials 298 | -10/Materials | Discovered new exit (range 14) 306 | -10/Materials | Build established: Mutant 377 | -10/Materials | Discovered new exit (range 16) 445 | -10/Materials | Discovered new exit (range 8) 1131 | -10/Materials | Discovered new exit (range 16) 1225 | -10/Materials | Core integrity fell below 50% 1684 | -10/Materials | Entered Mines 1687 | -10/Mines | Received a Mining Laser from a helpful Derelict 2111 | -10/Mines | Discovered new exit (range 6) 2217 | -10/Mines | Learned Materials garrison access intel 2274 | -10/Mines | Assembled infested the area 2347 | -10/Mines | Lost 3 parts (1p2w) 2357 | -10/Mines | Core integrity fell below 20% 2359 | -10/Mines | Destroyed by D-53 Grenadier with Mini Grenade Launcher Last Messages --------------- 02300_ TY-1VX(g) destroyed. 02305_ as-11668 destroyed. 02307_ as-40496 destroyed. 02309_ as-62726 destroyed. 02309_ Ion Engine destroyed. 02309_ as-09915 destroyed. 02310_ The unstable cave ceiling collapses. 02310_ Beamcaster crushed. 02311_ Grenade Launcher destroyed. 02316_ The unstable cave ceiling collapses. 02316_ Imp. EM Shotgun destroyed. 02319_ R-06 Scavenger collects Wheel. 02319_ Destroyed Asb. Hover Unit. 02319_ as-31958 destroyed. 02321_ Acquired 5 matter. 02323_ Acquired 20 matter. 02325_ Extracted 95 matter. 02353_ Seismic Detector destroyed. 02355_ Imp. EM Shotgun destroyed. 02356_ Aluminum Leg destroyed. Map ----- +----------------------------------------------------+ | ????????????????## #####???????# | | ?????????????#### #???????# | | ????????????## #???????# | | ???????????## ## #???????# | | ???????????# ## #???????# | | ??????????## ### #????????# # | | ????????### #?# #????????# # | | ???????## ##?# #????????# | | ???????# ##??# #???????## | | ???????## ###??# #??????## | | ????????# ##?# #?????## | | ???????## ### #?????# ## | | ???????# #% ##????# ##? | | ??????## = ##???## ##? | | ?????## ####?## #? | | ????## #??####? | | ???## ## ######## | | ???# = ## | | ???# %* ########### | | ???# *!=# # ?????????? | | ???# #### # ?????????? | | ????# ###### #?? ????????? | | ????# %d ## ## #? ????????? | | ?????# #?# ???????? | | ?????# d #?# ???????? | | ?????# @ #??# ???????? | | ??????# # #??## ???????? | | ????????# #??# ???????? | | ????????## ?????????? | | ?????????## # ## ?????????? | | ??????????## # ####?#???? ?????????? | | ???????????#######????????????????????? | | ??????????????????????????????????????? | | ??????????????????????????????????????? | | ??????????????????????????????????????? | | ??????????????????????????????????????? | | ??????????????????????????????????????? | | ??????????????????????????????????????? | | ??????????????????????????????????????? | | ??????????????????????????????????????? | | ??????????????????????????????????????? | | ??????????????????????????????????????? | | ??????????????????????????????????????? | | ??????????????????????????????????????? | | ??????????????????????????????????????? | | ??????????????????????????????????????? | | ??????????????????????????????????????? | | ??????????????????????????????????????? | | ??????????????????????????????????????? | | ??????????????????????????????????????? | +----------------------------------------------------+ Best States ------------- Heat Dissipation 25 Energy Generation 10 Energy Capacity 250 Matter Stores 300 Matter Capacity 300 Sight Range 16 Terrain Scan Density 10 Evasion (%) 55 Item Schematics ----------------- None Robot Schematics ------------------ None Fabricated ------------ Nothing Repaired ---------- Nothing Alien Tech Used ----------------- None Achievements -------------- None Challenges ------------ None Game ------ Seed ChromionStealthShell Manual? 0 Play Time 00:14:00 Cumulative 75.6 hours Start 2025.07.11 @ 22:07:19 End 2025.07.11 @ 22:18:26 Sessions 1 Manual Loads 0 Difficulty Rogue Special Mode None Game No. 71 Rogue 71 Adventurer 0 Explorer 0 Win Type - Total 1 Types 1/0/0/0/0/0/0/0/0/0 Lore% 42 Gallery% 43 Achievement% 44 Wizard Run 0 Options --------- Layout 1 ASCII 0 Keyboard 1 Movement Arrows Keybinds 0 Fullscreen 1 Font 24/Smallcaps Map View 50x40 Zoom Use 0% Tactical HUD 1 Map Filters NONE Filters NONE Steam 1 RUN: 6eef1e8a-41b0-42b5-8ca7-def30041ca8e